Workbook

Sheet per Safley and Westerman
A1: Effect of temperature on biogas, at least according to one formula…
B4: Equation from “Psychrophilic anaerobic digestion of animal manure: Proposed design methodology” by Safley and Westerman,
B5: as quoted in “Development of a Methane Conversion Factor to Estimate Emissions from Animal Waste Lagoons,” available on the EPA website. | P5: ref here
M9: David William House
M10: (author of “The Complete Biogas Handbook”)
M11: www.completebiogas.com
M12: CompleteBiogas@gmail.com
C13: LR2 | D13: = | E13: Loading rate at temperature T2 (kg VS/m3) of reference digester
C14: LR1 | D14: = | E14: Loading rate at temperature T1 (kg VS/m3) of lower temp digester
C15: T1 | D15: = | E15: Temperature of digestion of the reference digester | M15: The “reference digester” is simply a digester at or near optimal temp,
C16: T2 | D16: = | E16: Temperature of the lower temp digester | M16: but of course the reference digesterʼs temp could also be selected
C17: p | D17: = | E17: 0.1, reported rate constant per °C-1 | M17: to provide a different contrast. 13°C is boldfaced, below, because
M18: that is a common ambient temp across the US.
M20: “Loading rate” is a scientific measure of the amount of material fed
M21: to a digester, per unit volume per day
C23: LR2 | D23: = | E23: ? | F23: kg VS/m3 | G23: Solve for LR2
C24: LR1 | D24: = | E24: 2 | F24: kg VS/m3 | G24: (LR for silage, from “Biogas production from mono-digestion of maize” by Lebuhn et al)
C25: T1 | D25: = | E25: 35 | F25: °C | G25: =convTempCtoF(Temp1inC) -> 95 | H25: °F | I25: ref temp from initial reference
C26: T2 | D26: = | E26: (varies)
C27: p | D27: = | E27: 0.06929 | F27: (modified rate constant that gives the classic 50% drop for every 10°C drop in temp…)
B29: Since the loading rate is directly proportional to the gas production, the formula will provide a ratio that applies to either.
B30: (In other words, if the LR should be 25% of the reference digester, then the gas production will also be 25% of the ref digester.)
B31: Therefore to achieve a comparable gas production, the size of the digester must increase by the reciprocal: i.e. @ 25% of the LR,
B32: the digester vol would have to be 4x to achieve comparable gas production. Since LR is “per digester volume”, note that a 4x larger
B33: digester with an LR of 25% would be fed the same amount of material as the reference (smaller) digester, which is operating
B34: at the higher temperature.
O36: Production | Q36: Digester size
B37: @ | C37: 100 | D37: °F | E37: =LoadRate1*(EXP(RateConstant*(convTempFtoC(C37)-Temp1inC))) -> 2.42448566 | F37: kg VS/m3 | H37: =CONCATENATE("i.e., LR (or gas production) will be ",ROUND(E37/rateAt100degF*100,2),"% at ",C37,"°F (",ROUND(convTempFtoC(C37),1),"°C)") -> i.e., LR (or gas production) will be 100% at 100°F (37.8°C) | O37: =rateAt100degF/rateAt100degF -> 1 | Q37: =ROUND(rateAt100degF/rateAt100degF,2) -> 1
B38: @ | C38: 90 | D38: °F | E38: =LoadRate1*(EXP(RateConstant*(convTempFtoC(C38)-Temp1inC))) -> 1.649834465 | F38: kg VS/m3 | H38: =CONCATENATE("i.e., LR (or gas production) will be ",ROUND(E38/rateAt100degF*100,2),"% at ",C38,"°F (",ROUND(convTempFtoC(C38),1),"°C)") -> i.e., LR (or gas production) will be 68.05% at 90°F (32.2°C) | O38: =E38/rateAt100degF -> 0.6804884401 | Q38: =ROUND(rateAt100degF/E38,2) -> 1.47 | R38: =CONCATENATE(ROUND(Q38*1,1),"x larger") -> 1.5x larger
B39: @ | C39: 80 | D39: °F | E39: =LoadRate1*(EXP(RateConstant*(convTempFtoC(C39)-Temp1inC))) -> 1.122693281 | F39: kg VS/m3 | H39: =CONCATENATE("i.e., LR (or gas production) will be ",ROUND(E39/rateAt100degF*100,2),"% at ",C39,"°F (",ROUND(convTempFtoC(C39),1),"°C)") -> i.e., LR (or gas production) will be 46.31% at 80°F (26.7°C) | O39: =E39/rateAt100degF -> 0.4630645171 | Q39: =ROUND(rateAt100degF/E39,2) -> 2.16 | R39: =CONCATENATE(ROUND(Q39*1,1),"x larger") -> 2.2x larger
B40: @ | C40: 70 | D40: °F | E40: =LoadRate1*(EXP(RateConstant*(convTempFtoC(C40)-Temp1inC))) -> 0.7639797995 | F40: kg VS/m3 | H40: =CONCATENATE("i.e., LR (or gas production) will be ",ROUND(E40/rateAt100degF*100,2),"% at ",C40,"°F (",ROUND(convTempFtoC(C40),1),"°C)") -> i.e., LR (or gas production) will be 31.51% at 70°F (21.1°C) | O40: =E40/rateAt100degF -> 0.3151100509 | Q40: =ROUND(rateAt100degF/E40,2) -> 3.17 | R40: 3.2x larger
B41: @ | C41: 60 | D41: °F | E41: =LoadRate1*(EXP(RateConstant*(convTempFtoC(C41)-Temp1inC))) -> 0.519879422 | F41: kg VS/m3 | H41: =CONCATENATE("i.e., LR (or gas production) will be ",ROUND(E41/rateAt100degF*100,2),"% at ",C41,"°F (",ROUND(convTempFtoC(C41),1),"°C)") -> i.e., LR (or gas production) will be 21.44% at 60°F (15.6°C) | O41: =E41/rateAt100degF -> 0.214428747 | Q41: =ROUND(rateAt100degF/E41,2) -> 4.66 | R41: 4.7x larger
B42: @ | C42: 50 | D42: °F | E42: =LoadRate1*(EXP(RateConstant*(convTempFtoC(C42)-Temp1inC))) -> 0.3537719369 | F42: kg VS/m3 | H42: =CONCATENATE("i.e., LR (or gas production) will be ",ROUND(E42/rateAt100degF*100,2),"% at ",C42,"°F (",ROUND(convTempFtoC(C42),1),"°C)") -> i.e., LR (or gas production) will be 14.59% at 50°F (10°C) | O42: =E42/rateAt100degF -> 0.1459162835 | Q42: =ROUND(rateAt100degF/E42,2) -> 6.85 | R42: 6.9x larger
B43: @ | C43: 40 | D43: °F | E43: =LoadRate1*(EXP(RateConstant*(convTempFtoC(C43)-Temp1inC))) -> 0.2407377135 | F43: kg VS/m3 | H43: =CONCATENATE("i.e., LR (or gas production) will be ",ROUND(E43/rateAt100degF*100,2),"% at ",C43,"°F (",ROUND(convTempFtoC(C43),1),"°C)") -> i.e., LR (or gas production) will be 9.93% at 40°F (4.4°C) | O43: =E43/rateAt100degF -> 0.09929434416 | Q43: =ROUND(rateAt100degF/E43,2) -> 10.07 | R43: 10.1x larger
B45: @ | C45: 38 | D45: °C | E45: =LoadRate1*(EXP(RateConstant*(C45-Temp1inC))) -> 2.462106244 | F45: kg VS/m3 | H45: =CONCATENATE("i.e., LR (or gas production) will be ",ROUND(E45/rateAt100degF*100,2),"% at ",C45,"°C (",convTempCtoF(C45),"°F)") -> i.e., LR (or gas production) will be 101.55% at 38°C (100.4°F) | O45: =rateAt100degF/rateAt100degF -> 1 | Q45: =ROUND(rateAt100degF/rateAt100degF,2) -> 1
B46: @ | C46: 35 | D46: °C | E46: 2 | F46: kg VS/m3 | H46: =CONCATENATE("i.e., LR (or gas production) will be ",ROUND(E46/rateAt100degF*100,0),"% at ",C46,"°C (",convTempCtoF(C46),"°F)") -> i.e., LR (or gas production) will be 82% at 35°C (95°F) | O46: =E46/rateAt100degF -> 0.8249172323 | Q46: =ROUND(rateAt100degF/E46,2) -> 1.21 | R46: =CONCATENATE(ROUND(Q46*1,1),"x larger") -> 1.2x larger
B47: @ | C47: 30 | D47: °C | E47: 1.414388356 | F47: kg VS/m3 | H47: =CONCATENATE("i.e., LR (or gas production) will be ",ROUND(E47/rateAt100degF*100,0),"% at ",C47,"°C (",convTempCtoF(C47),"°F)") -> i.e., LR (or gas production) will be 58% at 30°C (86°F) | O47: =E47/rateAt100degF -> 0.5833766641 | Q47: =ROUND(rateAt100degF/E47,2) -> 1.71 | R47: 1.7x larger
B48: @ | C48: 25 | D48: °C | E48: 1.000247211 | F48: kg VS/m3 | H48: =CONCATENATE("i.e., LR (or gas production) will be ",ROUND(E48/rateAt100degF*100,0),"% at ",C48,"°C (",convTempCtoF(C48),"°F)") -> i.e., LR (or gas production) will be 41% at 25°C (77°F) | O48: =E48/rateAt100degF -> 0.4125605805 | Q48: =ROUND(rateAt100degF/E48,2) -> 2.42 | R48: 2.4x larger
B49: @ | C49: 20 | D49: °C | E49: 0.7073690044 | F49: kg VS/m3 | H49: =CONCATENATE("i.e., LR (or gas production) will be ",ROUND(E49/rateAt100degF*100,0),"% at ",C49,"°C (",convTempCtoF(C49),"°F)") -> i.e., LR (or gas production) will be 29% at 20°C (68°F) | O49: =E49/rateAt100degF -> 0.2917604406 | Q49: =ROUND(rateAt100degF/E49,2) -> 3.43 | R49: 3.4x larger
B50: @ | C50: 15 | D50: °C | E50: 0.5002472417 | F50: kg VS/m3 | H50: =CONCATENATE("i.e., LR (or gas production) will be ",ROUND(E50/rateAt100degF*100,0),"% at ",C50,"°C (",convTempCtoF(C50),"°F)") -> i.e., LR (or gas production) will be 21% at 15°C (59°F) | O50: =E50/rateAt100degF -> 0.206331285 | Q50: =ROUND(rateAt100degF/E50,2) -> 4.85 | R50: 4.9x larger
B51: @ | C51: 10 | D51: °C | E51: 0.3537719369 | F51: kg VS/m3 | H51: =CONCATENATE("i.e., LR (or gas production) will be ",ROUND(E51/rateAt100degF*100,0),"% at ",C51,"°C (",convTempCtoF(C51),"°F)") -> i.e., LR (or gas production) will be 15% at 10°C (50°F) | O51: =E51/rateAt100degF -> 0.1459162835 | Q51: =ROUND(rateAt100degF/E51,2) -> 6.85 | R51: 6.9x larger

Sheet Graphic overview
A1: Graphic overview, results of the formula
C4: °C | D4: °F | G4: ref HRT | H4: 136 | I4: days
C5: 10 | D5: =convTempCtoF(C5) -> 50 | F5: =LoadRate1*(EXP(RateConstant*(C5-Temp1inC))) -> 0.3537719369 | G5: 1 | H5: =$H$4*G5 -> 136 | I5: =HRTat20DegC/H5 -> 0.1436867063
C6: =C5+2 -> 12 | D6: 53.6 | F6: 0.4063571528 | G6: =$F$5/F6 -> 0.870593601 | H6: =$H$4*G6 -> 118.4007297 | I6: 0.1650445238
C7: =C6+2 -> 14 | D7: 57.2 | F7: 0.4667587176 | G7: =$F$5/F7 -> 0.7579332181 | H7: 103.0789177 | I7: 0.1895770009
C8: 16 | D8: 60.8 | F8: 0.5361384659 | G8: 0.6598518097 | H8: 89.73984611 | I8: 0.2177560238
C9: 18 | D9: 64.4 | F9: 0.6158309287 | G9: 0.5744627631 | H9: 78.12693578 | I9: 0.2501236208
C10: 20 | D10: 68 | F10: 0.7073690044 | G10: 0.5001236056 | H10: 68.01681036 | I10: 0.2873023883
C11: 22 | D11: 71.6 | F11: 0.8125134432 | G11: 0.4354044107 | H11: 59.21499986 | I11: 0.3300074662
C12: 24 | D12: 75.2 | F12: 0.9332867164 | G12: 0.3790602938 | H12: 51.55219996 | I12: 0.3790602938
C13: 26 | D13: 78.8 | F13: 1.072011918 | G13: 0.3300074662 | H13: 44.8810154 | I13: 0.4354044107
C14: 28 | D14: 82.4 | F14: 1.231357452 | G14: 0.2873023883 | H14: 39.07312481 | I14: 0.5001236056
C15: 30 | D15: 86 | F15: 1.414388356 | G15: 0.2501236208 | H15: 34.01681243 | I15: 0.5744627631
C16: 32 | D16: 89.6 | F16: 1.624625261 | G16: 0.2177560238 | H16: 29.61481923 | I16: 0.6598518097
C17: 34 | D17: 93.2 | F17: 1.866112109 | G17: 0.1895770009 | H17: 25.78247212 | I17: 0.7579332181
C18: 36 | D18: 96.8 | F18: 2.143493941 | G18: 0.1650445238 | H18: 22.44605524 | I18: 0.870593601
C19: 38 | D19: 100.4 | F19: 2.462106244 | G19: 0.1436867063 | H19: 19.54139206 | I19: 1

Sheet Conversions
A1: Conversions
A2: cnv
B4: Length/Distance
C5: Conversion | D5: cellName | E5: conv# | F5: Units
C6: mm (to mil) | D6: mmToMil | E6: 39.37 | F6: mil
C7: cm (to in) | D7: cmToIn | E7: 0.3937007874 | F7: in
C8: m (to ft) | D8: mToFt | E8: 3.280839895 | F8: ft
C9: km (to mi) | D9: kmToMi | E9: 0.6213711922 | F9: mi
C10: mil (to mm) | D10: milToMm | E10: 0.0254000508 | F10: mm
C11: in (to cm) | D11: inToCm | E11: 2.54 | F11: cm
C12: in (to ft) | D12: inToFt | E12: 0.08333333333 | F12: ft
C13: ft (to yd) | D13: ftToYd | E13: 0.3333333333 | F13: yd
C14: ft (to m) | D14: ftToM | E14: 0.3048 | F14: m
C15: ft (to mi) | D15: ftToMi | E15: 0.0001893939 | F15: mi
C16: mi (to km) | D16: miToKm | E16: 1.609344 | F16: km
B18: Area
C19: Conversion | D19: cellName | E19: conv# | F19: Units
C20: cm2 (to in2) | D20: cmSqToInSq | E20: 0.15500031 | F20: in2
C21: m2 (to ft2) | D21: mSqToFtSq | E21: 10.76391042 | F21: ft2
C22: m2 (to ha) | D22: mSqToHa | E22: 0.0001 | F22: ha
C23: km2 (to ha) | D23: kmSqToHa | E23: 100 | F23: ha
C24: km2 (to acre) | D24: kmSqToAcre | E24: 247.1053815 | F24: acre
C25: km2 (to mi2) | D25: kmSqToMiSq | E25: 0.386102158 | F25: mi2
C26: ha (to acre) | D26: haToAcre | E26: 2.471053816 | F26: acre
C27: ha (to ft2) | D27: haToFtSq | E27: 107639.1042 | F27: ft2
C28: in2 (to cm2) | D28: inSqToCmSq | E28: 6.4516 | F28: cm2
C29: in2 (to ft2) | D29: inSqToFtSq | E29: 0.006944444 | F29: ft2
C30: ft2 (to in2) | D30: ftSqToInSq | E30: 144 | F30: in2
C31: ft2 (to m2) | D31: ftSqToMSq | E31: 0.09290304 | F31: m2
C32: ft2 (to yd2) | D32: ftSqToYdSq | E32: 0.1111111 | F32: yd2
C33: ft2 (to mi2) | D33: ftSqToMiSq | E33: 3.587006428e-08 | F33: mi2
C34: ft2 (to acre) | D34: ftSqToAcre | E34: 2.295684114e-05 | F34: acre
C35: ft2 (to ha) | D35: ftSqToHa | E35: 9.290304e-06 | F35: ha
C36: mi2 (to ft2) | D36: miSqToFtSq | E36: 27878400 | F36: ft2
C37: mi2 (to km2) | D37: miSqToKmSq | E37: 2.58998811 | F37: km2
C38: acre (to ft2) | D38: acreToFtSq | E38: 43560 | F38: ft2
C39: acre (to ha) | D39: acreToHa | E39: 0.404685642 | F39: ha
C40: acre (to km2) | D40: acreToKmSq | E40: 0.004046856 | F40: km2
C41: acre (to mi2) | D41: acreToMiSq | E41: 0.0015625 | F41: mi2
B43: Mass
C44: Conversion | D44: cellName | E44: conv# | F44: Units
C45: gm (to oz) | D45: gmToOz | E45: 0.03527396195 | F45: oz
C46: gm (to lb) | D46: gmToLb | E46: 0.002204622622 | F46: lb
C47: kg (to oz) | D47: kgToOz | E47: 35.27396195 | F47: oz
C48: kg (to lb) | D48: kgToLb | E48: 2.204622622 | F48: lb
C49: kg (to slug) | D49: kgToSlug | E49: 14.59390294 | F49: slug
C50: kg (to ton) | D50: kgToTon | E50: 0.001102311311 | F50: ton
C51: tonne (to lb) | D51: tonneToLb | E51: 2204.622622 | F51: lb
C52: tonne (to ton) | D52: tonneToTon | E52: 1.102311311 | F52: ton
C53: oz (to gm) | D53: ozToGm | E53: 28.34952313 | F53: gm
C54: oz (to lb) | D54: ozToLb | E54: 0.0625 | F54: lb
C55: oz (to kg) | D55: ozToKg | E55: 0.02834952313 | F55: kg
C56: lb (to gm) | D56: lbToGm | E56: 453.59237 | F56: gm
C57: lb (to oz) | D57: lbToOz | E57: 16 | F57: oz
C58: lb (to kg) | D58: lbToKg | E58: 0.45359237 | F58: kg
C59: lb (to slug) | D59: lbToSlug | E59: 0.03108095017 | F59: slug
C60: lb (to ton) | D60: lbToTon | E60: 0.0005 | F60: ton
C61: lb (to tonne) | D61: lbToTonne | E61: 0.00045359237 | F61: tonne
C62: slug (to kg) | D62: slugToKg | E62: 0.06852176586 | F62: kg
C63: slug (to lb) | D63: slugToLb | E63: 32.17404856 | F63: lb
C64: ton (to lb) | D64: tonToLb | E64: 2000 | F64: lb
C65: ton (to kg) | D65: tonToKg | E65: 907.1847 | F65: kg
C66: ton (to tonne) | D66: tonToTonne | E66: 0.90718474 | F66: tonne
B68: Volume
C69: Conversion | D69: cellName | E69: conv# | F69: Units
C70: cm3 (to ml) | D70: cmCuToMl | E70: 1 | F70: ml
C71: cm3 (to m3) | D71: cmCuToMCu | E71: 1e-06 | F71: m3
C72: cm3 (to in3) | D72: cmCuToInCu | E72: 0.06102374409 | F72: in3
C73: cm3 (to fl oz) | D73: cmCuToFlOz | E73: 0.0338140227 | F73: fl oz
C74: l (to m3) | D74: lToMCu | E74: 0.001 | F74: m3
C75: l (to in3) | D75: lToInCu | E75: 61.02374409 | F75: in3
C76: l (to fl oz) | D76: lToFlOz | E76: 33.8140227 | F76: fl oz
C77: l (to ft3) | D77: lToFtCu | E77: 0.03531466672 | F77: ft3
C78: m3 (to cm3) | D78: mCuToCmCu | E78: 1000000 | F78: cm3
C79: m3 (to in3) | D79: mCuToInCu | E79: 61023.74409 | F79: in3
C80: m3 (to ft3) | D80: mCuToFtCu | E80: 35.31466672 | F80: ft3
C81: m3 (to gal) | D81: mCuToGal | E81: 264.1720524 | F81: gal
C82: m3 (to yd3) | D82: mCuToYdCu | E82: 1.307950619 | F82: yd3
C83: in3 (to cm3) | D83: inCuToCmCu | E83: 16.387064 | F83: cm3
C84: in3 (to fl oz) | D84: inCuToFlOz | E84: 0.5541125541 | F84: fl oz
C85: in3 (to ft3) | D85: inCuToFtCu | E85: 0.0005787037037 | F85: ft3
C86: in3 (to gal) | D86: inCuToGal | E86: 0.004329004329 | F86: gal
C87: fl oz (to cm3) | D87: flOzToCmCu | E87: 29.57352956 | F87: cm3
C88: fl oz (to in3) | D88: flOzToInCu | E88: 1.8046875 | F88: in3
C89: fl oz (to ft3) | D89: flOzToFtCu | E89: 0.001044379 | F89: ft3
C90: fl oz (to gal) | D90: flOzToGal | E90: 0.0078125 | F90: gal
C91: ft3 (to cm3) | D91: ftCuToCmCu | E91: 28316.84659 | F91: cm3
C92: ft3 (to l) | D92: ftCuToL | E92: 28.31684659 | F92: l
C93: ft3 (to m3) | D93: ftCuToMCu | E93: 0.028316847 | F93: m3
C94: ft3 (to in3) | D94: ftCuToInCu | E94: 1728 | F94: in3
C95: ft3 (to gal) | D95: ftCuToGal | E95: 7.480519481 | F95: gal
C96: ft3 (to bu) | D96: ftCuToBu | E96: 0.8035639549 | F96: bu
C97: ft3 (to yd3) | D97: ftCuToYdCu | E97: 0.03703704 | F97: yd3
C98: ft3 (to l) | D98: ftCuToL | E98: 28.31685 | F98: l
C99: ft3 (to m3) | D99: ftCuToMCu | E99: 0.02831685 | F99: m3
C100: gal (to fl oz) | D100: galToFlOz | E100: 128 | F100: fl oz
C101: gal (to l) | D101: galToL | E101: 0.2641720524 | F101: l
C102: gal (to ft3) | D102: galToFtCu | E102: 0.1336805556 | F102: ft3
C103: gal (to m3) | D103: galToMCu | E103: 0.003785411784 | F103: m3
C104: yd3 (to ft3) | D104: ydCuToftCu | E104: 26.99999784 | F104: ft3
B106: Energy units
C107: Conversion | D107: cellName | E107: conv# | F107: Units
C108: kCal (to BTU) | D108: kCalToBtu | E108: 3.968320541 | F108: BTU
C109: kCal (to joules) | D109: kCalToJoules | E109: 4186.8 | F109: joules
C110: joules (to kCal) | D110: joulesToKcal | E110: 0.0002388458966 | F110: kCal
C111: joules (to KwH) | D111: joulesToKwh | E111: 2.777778e-07 | F111: KwH
C112: joules (to BTU) | D112: joulesToBtu | E112: 0.0009478171 | F112: BTU
C113: joules (to therm) | D113: joulesToTherm | E113: 9.478134e-09 | F113: therm
C114: kCal (to Kwh) | D114: kCalToKwh | E114: 0.001163 | F114: Kwh
C115: kCal (to therm) | D115: kCalToTherm | E115: 3.969268224e-05 | F115: therm
C116: BTU (to kCal) | D116: btuToKcal | E116: 0.2519957724 | F116: kCal
C117: BTU (to Kwh) | D117: btuToKwh | E117: 0.0002930710833 | F117: Kwh
C118: BTU (to therm) | D118: btuToTherm | E118: 1.000238812e-05 | F118: therm
C119: Kwh (to kCal) | D119: kwhToKcal | E119: 859.8452279 | F119: kCal
C120: Kwh (to BTU) | D120: kwhToBtu | E120: 3412.14148 | F120: BTU
C121: Kwh (to therm) | D121: kwhToTherm | E121: 0.03412128 | F121: therm
C122: therm (to kCal) | D122: thermToKcal | E122: 25193.56071 | F122: kCal
C123: therm (to BTU) | D123: thermToBtu | E123: 99976.12449 | F123: BTU
C124: therm (to Kwh) | D124: thermToKwh | E124: 29.30011111 | F124: Kwh
B126: Power
C127: Conversion | D127: cellName | E127: conv# | F127: Units
C128: kW (to kCal/sec) | D128: kWToKcalPerSec | E128: 0.2388458966 | F128: kCal/sec
C129: kW (to BTU/sec) | D129: kWToBtuPerSec | E129: 0.9478171209 | F129: BTU/sec
C130: kW (to HP) | D130: kWToHp | E130: 1.341022092 | F130: HP
C131: kCal/sec (to kW) | D131: kCalPerSecToKw | E131: 4.1868 | F131: kW
C132: kCal/sec (to HP) | D132: kCalPerSecToHp | E132: 5.614591297 | F132: HP
C133: BTU/sec (to kW) | D133: btuPerSecToKw | E133: 1.055055852 | F133: kW
C134: BTU/sec (to HP) | D134: btuPerSecToHp | E134: 1.414853206 | F134: HP
C135: HP (to kW) | D135: hpToKw | E135: 0.74569987 | F135: kW
C136: HP (to kCal/sec) | D136: hpToKcalPerSec | E136: 0.1781073541 | F136: kCal/sec
C137: HP (to BTU/sec) | D137: hpToBtuPerSec | E137: 0.7067871038 | F137: BTU/sec
B139: Acceleration
C140: Conversion | D140: cellName | E140: conv# | F140: Units
C141: m sec-2 (to ft sec-2) | D141: mPerSecSqToFtPerSecSq | E141: 0 | F141: ft sec-2
C142: ft sec-2 (to m sec-2) | D142: ftPerSecSqToMPerSecSq | E142: 0 | F142: m sec-2
B144: Energy Density (chk*)
C145: Conversion | D145: cellName | E145: conv# | F145: Units
C146: cal l-1 (to kCal m-3) | D146: calPerLToKcalPerMCu | E146: 0.001 | F146: kCal m-3
C147: cal l-1 (to joules m-3) | D147: calPerLToJoulesPerMCu | E147: 4184 | F147: joules m-3
C148: kCal l-1 (to joules m-3) | D148: kCalPerLToJoulesPerMCu | E148: 4184000 | F148: joules m-3
C149: kCal l-1 (to BTU ft-3) | D149: kCalPerLToBtuPerFtCu | E149: 112.2951793 | F149: BTU ft-3
C150: kCal l-1 (to BTU gal-1) | D150: kCalPerLToBtuPerGal | E150: 15.01168195 | F150: BTU gal-1
C151: kCal m-3 (to BTU ft-3) | D151: kCalPerMCuToBtuPerFtCu | E151: 0.1122951793 | F151: BTU ft-3
C152: kCal m-3 (to BTU gal-1) | D152: kCalPerMCuToBtuPerGal | E152: 0.01501168195 | F152: BTU gal-1
C153: joules l-1 (to kCal m-3) | D153: joulesPerLToKcalPerMCu | E153: 0.239005736 | F153: kCal m-3
C154: joules l-1 (to BTU ft-3) | D154: joulesPerLToBtuPerFtCu | E154: 0.02685715995 | F154: BTU ft-3
C155: joules l-1 (to BTU gal-1) | D155: joulesPerLToBtuPerGal | E155: 0.003587877372 | F155: BTU gal-1
C156: joules l-1 (to therm ft-3) | D156: joulesPerLToThermPerFtCu | E156: 3.347171434e-10 | F156: therm ft-3
C157: BTU ft-3 (to kCal l-1) | D157: btuPerFtCuToKcalPerL | E157: 0.00890510177 | F157: kCal l-1
C158: BTU ft-3 (to kCal m-3) | D158: btuPerFtCuToKcalPerMCu | E158: 8.90510177 | F158: kCal m-3
C159: BTU ft-3 (to joules m-3) | D159: btuPerFtCuToJoulesPerMCu | E159: 37258.94581 | F159: joules m-3
C160: therm ft-3 (to kCal m-3) | D160: thermPerFtCuToKcalPerMCu | E160: 889702.2002 | F160: kCal m-3
C161: therm ft-3 (to joules m-3) | D161: thermPerFtCuToJoulesPerMCu | E161: 3725005172 | F161: joules m-3
C162: therm ft-3 (to BTU gal-1) | D162: thermPerFtCuToBtuPerGal | E162: 13368.05556 | F162: BTU gal-1
B164: Density
C165: Conversion | D165: cellName | E165: conv# | F165: Units
C166: gm/cm3 (to kg/m3) | D166: gmPerCmCuToKgPerMCu | E166: 1000 | F166: kg/m3
C167: kg/l (to lb/ft3) | D167: kgPerLToLbPerFtCu | E167: 62.42796058 | F167: lb/ft3
C168: kg/m3 (to lb/in3) | D168: kgPerMCuToLbPerInCu | E168: 3.6127292e-05 | F168: lb/in3
C169: kg/m3 (to lb/ft3) | D169: kgPerMCuToLbPerftCu | E169: 0.06242796058 | F169: lb/ft3
C170: kg/m3 (to lb/gal) | D170: kgPerMCuToLbPerGal | E170: 0.008345404452 | F170: lb/gal
C171: kg/m3 (to SpGrav (specific gravity)) | D171: kgPerMCuToSpGrav | E171: 0.001 | F171: SpGrav (specific gravity)
C172: lb/ft3 (to kg/m3) | D172: lbPerInCuToKgPerMCu | E172: 16.01846337 | F172: kg/m3
C173: lb/ft3 (to oz/in3) | D173: lbPerFtCuToOzPerInCu | E173: 0.009259259259 | F173: oz/in3
C174: lb/ft3 (to SpGrav) | D174: lbPerFtCuToSpGrav | E174: 62.42718356 | F174: SpGrav
C175: SpGrav (to gm/cm3) | D175: spGravToGmPerCmCu | E175: 1 | F175: gm/cm3
C176: SpGrav (to kg/m3) | D176: spGravToKgPerMCu | E176: 1000 | F176: kg/m3
C177: SpGrav (to oz/in3) | D177: spGravToOzPerInCu | E177: 0.5780294774 | F177: oz/in3
C178: SpGrav (to lb/ft3) | D178: spGravToLbPerFtCu | E178: 0.01601866275 | F178: lb/ft3
C179: SpGrav (to lb/gal) | D179: spGravToLbPerGal | E179: 8.34530058 | F179: lb/gal
B181: Pressure
C182: Conversion | D182: cellName | E182: conv# | F182: Units
C183: atm (to bar) | D183: atmToBar | E183: 1.01325 | F183: bar
C184: atm (to mm Hg) | D184: atmToMmHg | E184: 760.0021002 | F184: mm Hg
C185: atm (to cm H2O) | D185: atmToCmH2o | E185: 1033.227555 | F185: cm H2O
C186: atm (to cm H2O) | D186: atmToFtH2o | E186: 33.89854205 | F186: cm H2O
C187: atm (to MPascal) | D187: atmToMpascal | E187: 0.10132501 | F187: MPascal
C188: atm (to psi) | D188: atmToPsi | E188: 14.69595025 | F188: psi
C189: bar (to atm) | D189: barToAtm | E189: 0.9869232667 | F189: atm
C190: bar (to mm Hg) | D190: barToMmHg | E190: 750.0637554 | F190: mm Hg
C191: bar (to cm H2O) | D191: barToCmH2o | E191: 1019.716213 | F191: cm H2O
C192: bar (to psi) | D192: barToPsi | E192: 14.50377377 | F192: psi
C193: MPascal (to atm) | D193: mPascalToAtm | E193: 9.869231693 | F193: atm
C194: MPascal (to psi) | D194: mPascalToPsi | E194: 145.0377377 | F194: psi
C195: mm Hg (to atm) | D195: mmHgToAtm | E195: 0.001315785838 | F195: atm
C196: mm Hg (to cm H2O) | D196: mmHgToCmH2o | E196: 1.359506047 | F196: cm H2O
C197: cm H2O (to atm) | D197: cmH2oToAtm | E197: 0.0009678410098 | F197: atm
C198: cm H2O (to bar) | D198: cmH2oToBar | E198: 0.000980665 | F198: bar
C199: psi (to atm) | D199: psiToAtm | E199: 0.06804595706 | F199: atm
C200: psi (to bar) | D200: psiToBar | E200: 0.0689475728 | F200: bar
C201: bar (to mm Hg) | D201: barToMmHg | E201: 51.7149241 | F201: mm Hg
C202: psi (to cm H2O) | D202: psiToCmH2o | E202: 70.30695783 | F202: cm H2O
C203: psi (to MPascal) | D203: psiToMpascal | E203: 0.006894757293 | F203: MPascal
B205: Heat Transfer Coefficient
C206: Conversion | D206: cellName | E206: conv# | F206: Units
C207: kCal hr-1 m-2 ºC (to BTU hr-1 ft-2 ºF) | D207: kCalPerHrPerMSqDegCToBtuPerHrPerFtSqDegF | E207: 0.2046791689 | F207: BTU hr-1 ft-2 ºF
C208: BTU hr-1 ft-2 ºF (to kCal hr-1 m-2 ºC) | D208: btuPerHrPerFtSqDegFToKcalPerHrPerMSqDegC | E208: 4.885695041 | F208: kCal hr-1 m-2 ºC
B210: Gas Production (chk*)
C211: Conversion | D211: cellName | E211: conv# | F211: Units
C212: l gm-1 (to ft3 lb-1) | D212: lPerGmToFtCuPerLb | E212: 16.0184625 | F212: ft3 lb-1
... 27 more rows
